fUSD/lending_fUSD_20250225
["ID","MTS","AMOUNT","RATE_DAILY","PERIOD"]
[354422606,1740481845898,-500.0,0.00041368,2]
[354422608,1740481845907,-500.0,0.00041368,2]
[354422610,1740481845918,-500.0,0.00041368,2]
[354422612,1740481845928,-212.48701223,0.00041368,2]
[354422614,1740481845937,-500.0,0.00041368,2]
[354422616,1740481845947,-500.0,0.00041368,2]
[354422618,1740481845956,-377.35879095,0.00041368,2]
[354422619,1740481845965,-500.0,0.00041368,2]
[354422621,1740481845974,-500.0,0.00041368,2]
[354422623,1740481845984,-500.0,0.00041368,2]
[354422625,1740481845993,-500.0,0.00041368,2]
[354422627,1740481846003,-85.82835573,0.00041368,2]
[354422637,1740481846085,-596.09164427,0.00041368,2]
[354422639,1740481846094,-500.0,0.00041369,2]
[354422641,1740481846102,-614.6,0.00041369,2]
[354422642,1740481846112,-500.0,0.00041369,2]
[354422644,1740481846121,-500.0,0.00041369,2]
[354422645,1740481846130,-500.0,0.00041369,2]
[354422647,1740481846139,-309.37,0.00041369,2]
[354422649,1740481846148,-223.93,0.00041369,2]
[354422650,1740481846158,-500.0,0.00041369,2]
[354422652,1740481846168,-626.25,0.00041369,2]
[354422654,1740481846177,-159.86039839,0.00041373,2]
[354422655,1740481846186,-155.16,0.000414,2]
[354422657,1740481846196,-5702.80880961,0.0004141,4]
[354422659,1740481846205,-5702.80880961,0.0004142,4]
[354422660,1740481846213,-15000.0,0.0004143,120]
[354422662,1740481846222,-2073.08639252,0.00041485,15]
[354422664,1740481846231,-5702.80880961,0.0004154,4]
[354422665,1740481846241,-5702.80880961,0.0004155,4]
[354422667,1740481846250,-5702.80880961,0.00041553,4]
[354422669,1740481846259,-15000.0,0.0004156,120]
[354422670,1740481846268,-5702.80880961,0.00041563,4]
[354422672,1740481846277,-180.12525959,0.00041563,4]
[354422675,1740481846287,-601.15,0.00041573,2]
[354422677,1740481846295,-500.0,0.00041573,2]
[354422680,1740481846304,-500.0,0.00041573,2]
[354422683,1740481846314,-500.0,0.00041573,2]
[354422685,1740481846323,-500.0,0.00041573,2]
[354422686,1740481846332,-266.76862967,0.00041573,2]
[354422688,1740481846341,-500.0,0.00041573,2]
[354422690,1740481846351,-186.23,0.00041573,2]
[354422691,1740481846360,-500.0,0.00041573,2]
[354422693,1740481846369,-500.0,0.00041573,2]
[354422695,1740481846378,-506.67869494,0.00041573,2]
[354422696,1740481846387,-598.37,0.00041573,2]
[354422698,1740481846396,-500.0,0.00041573,2]
[354422700,1740481846409,-516.97,0.00041573,2]
[354422701,1740481846422,-529.74,0.00041573,2]
[354422703,1740481846431,-500.0,0.00041573,2]
[354422705,1740481846440,-500.0,0.00041573,2]
[354422707,1740481846451,-500.0,0.00041573,2]
[354422708,1740481846460,-150.0,0.00041608,2]
[354422710,1740481846469,-200.0,0.00041608,2]
[354422712,1740481846478,-1977.93,0.00041608,2]
[354422713,1740481846488,-241.64,0.00041608,2]
[354422715,1740481846498,-220.0,0.00041618,2]
[354422717,1740481846508,-5702.80880961,0.00041622,4]
[354422719,1740481846517,-5702.80880961,0.00041623,4]
[354422720,1740481846526,-11405.6176192,0.00041632,4]
[354422722,1740481846536,-11405.6176192,0.00041633,4]
[354422724,1740481846545,-500.0,0.00041642,2]
[354422726,1740481846554,-500.0,0.00041642,2]
[354422727,1740481846563,-516.0,0.00041642,2]
[354422729,1740481846572,-566.89,0.00041642,2]
[354422731,1740481846582,-500.0,0.00041642,2]
[354422733,1740481846591,-500.0,0.00041642,2]
[354422734,1740481846600,-500.0,0.00041642,2]
[354422736,1740481846609,-582.42,0.00041642,2]
[354422738,1740481846618,-476.85,0.00041642,2]
[354422740,1740481846627,-500.0,0.00041642,2]
[354422741,1740481846636,-323.99,0.00041642,2]
[354422743,1740481846646,-543.23,0.00041642,2]
[354422745,1740481846655,-500.0,0.00041642,2]
[354422747,1740481846665,-642.82,0.00041642,2]
[354422748,1740481846674,-292.96,0.00041642,2]
[354422749,1740481846683,-500.0,0.00041642,2]
[354422750,1740481846691,-500.0,0.00041642,2]
[354422751,1740481846700,-681.92,0.00041642,2]
[354422752,1740481846709,-500.0,0.00041643,2]
[354422753,1740481846718,-614.6,0.00041643,2]
[354422754,1740481846727,-500.0,0.00041643,2]
[354422755,1740481846736,-500.0,0.00041643,2]
[354422756,1740481846745,-500.0,0.00041643,2]
[354422757,1740481846754,-500.0,0.00041643,2]
[354422758,1740481846763,-5702.80880961,0.0004167,4]
[354422759,1740481846773,-5702.80880961,0.0004168,4]
[354422760,1740481846782,-15000.0,0.0004169,120]
[354422761,1740481846791,-2000.0,0.00041798,120]
[354422762,1740481846800,-300.0,0.000418,15]
[354422763,1740481846810,-5702.80880961,0.000418,4]
[354422764,1740481846820,-5702.80880961,0.0004181,4]
[354422765,1740481846829,-180.12525959,0.0004181,4]
[354422766,1740481846838,-15000.0,0.0004182,120]
[354422768,1740481846847,-5702.80880961,0.00041827,4]
[354422769,1740481846856,-2073.08639252,0.0004183,15]
[354422771,1740481846865,-601.15,0.00041847,2]
[354422773,1740481846874,-500.0,0.00041847,2]
[354422775,1740481846883,-500.0,0.00041847,2]
[354422776,1740481846892,-307.36,0.00041847,2]
[354422777,1740481846901,-500.0,0.00041847,2]
[354422778,1740481846911,-500.0,0.00041847,2]
[354422779,1740481846920,-500.0,0.00041847,2]
[354422780,1740481846929,-500.0,0.00041847,2]
[354422781,1740481846938,-639.92,0.00041847,2]
[354422782,1740481846948,-516.97,0.00041847,2]
[354422783,1740481846957,-500.0,0.00041847,2]
[354422784,1740481846966,-5702.80880961,0.0004189,4]
[354422785,1740481846975,-5702.80880961,0.00041896,4]
[354422786,1740481846984,-700.0,0.000419,15]
[354422787,1740481846993,-474.12,0.00041903,120]
[354422788,1740481847002,-177.37,0.00041916,2]
[354422789,1740481847011,-500.0,0.00041916,2]
[354422790,1740481847020,-516.0,0.00041916,2]
[354422791,1740481847029,-566.89,0.00041916,2]
[354422792,1740481847038,-500.0,0.00041916,2]
[354422793,1740481847047,-500.0,0.00041916,2]
[354422794,1740481847056,-500.0,0.00041916,2]
[354422795,1740481847065,-176.98,0.00041916,2]
[354422796,1740481847075,-500.0,0.00041916,2]
[354422797,1740481847084,-298.4,0.00041916,2]
[354422798,1740481847094,-294.28,0.00041916,2]
[354422799,1740481847104,-681.92,0.00041916,2]
[354422800,1740481847113,-500.0,0.00041917,2]
[354422801,1740481847122,-614.6,0.00041917,2]
[354422802,1740481847132,-500.0,0.00041917,2]
[354422804,1740481847141,-500.0,0.00041917,2]
[354422806,1740481847150,-500.0,0.00041917,2]
[354422808,1740481847162,-345.53,0.00041917,2]
[354422810,1740481847171,-4066.72,0.00041941,2]
[354422812,1740481847180,-613.0,0.00041945,2]
[354422817,1740481847312,-15000.0,0.0004195,120]
[354422818,1740481847324,-180.12525959,0.0004196,4]
[354422819,1740481847334,-175.61112408,0.0004197,5]
[354422820,1740481847344,-1000.0,0.00041976,2]
[354422821,1740481847353,-256.11,0.00041977,2]
[354422822,1740481847363,-180.12525959,0.0004199,4]
[354422823,1740481847372,-19547.42588206,0.00042,47]
[354422824,1740481847385,-80452.57411794,0.00042,47]
[354422825,1740481847395,-180.12525959,0.00042071,4]
[354422826,1740481847407,-15000.0,0.0004208,120]
[354422827,1740481847419,-180.12525959,0.00042081,4]
[354422828,1740481847428,-151.0,0.00042081,14]
[354422829,1740481847438,-151.0,0.00042081,14]
[354422830,1740481847448,-151.349057,0.00042081,14]
[354422831,1740481847457,-85796.284,0.00042091,2]
[354422832,1740481847467,-151.0,0.00042091,14]
[354422833,1740481847476,-601.15,0.00042121,2]
[354422835,1740481847489,-500.0,0.00042121,2]
[354422837,1740481847499,-500.0,0.00042121,2]
[354422839,1740481847508,-500.0,0.00042121,2]
[354422840,1740481847518,-500.0,0.00042121,2]
[354422842,1740481847528,-171.37,0.00042121,2]
[354422844,1740481847537,-500.0,0.00042121,2]
[354422846,1740481847547,-516.97,0.00042121,2]
[354422847,1740481847556,-242.0,0.00042166,2]
[354422848,1740481847565,-2073.08639252,0.00042175,15]
[354422849,1740481847574,-258.709502,0.0004218,14]
[354422850,1740481847584,-500.0,0.0004219,2]
[354422851,1740481847594,-516.0,0.0004219,2]
[354422852,1740481847603,-566.89,0.0004219,2]
[354422853,1740481847612,-500.0,0.0004219,2]
[354422854,1740481847622,-500.0,0.0004219,2]
[354422855,1740481847631,-500.0,0.0004219,2]
[354422856,1740481847640,-158.1,0.0004219,2]
[354422857,1740481847649,-681.92,0.0004219,2]
[354422858,1740481847659,-471.93916871,0.00042191,2]
[354422859,1740481847671,-614.6,0.00042191,2]
[354422860,1740481847681,-500.0,0.00042191,2]
[354422861,1740481847690,-500.0,0.00042191,2]
[354422862,1740481847700,-500.0,0.00042191,2]
[354422863,1740481847710,-15000.0,0.0004221,120]
[354422864,1740481847719,-150.81,0.00042217,2]
[354422865,1740481847728,-175.66,0.00042227,2]
[354422866,1740481847737,-15000.0,0.0004234,120]
[354422867,1740481847746,-285.9639,0.00042365,2]
[354422868,1740481847756,-601.15,0.00042395,2]
[354422869,1740481847765,-500.0,0.00042395,2]
[354422870,1740481847774,-547.19723571,0.00042395,2]
[354422871,1740481847783,-500.0,0.00042395,2]
[354422872,1740481847792,-500.0,0.00042395,2]
[354422873,1740481847801,-500.0,0.00042395,2]
[354422874,1740481847810,-516.97,0.00042395,2]
[354422875,1740481847819,-500.0,0.00042464,2]
[354422876,1740481847828,-516.0,0.00042464,2]
[354422877,1740481847837,-566.89,0.00042464,2]
[354422878,1740481847846,-409.08875248,0.00042464,2]
[354422879,1740481847855,-500.0,0.00042464,2]
[354422880,1740481847863,-232.24,0.00042464,2]
[354422881,1740481847873,-681.92,0.00042464,2]
[354422882,1740481847882,-614.6,0.00042465,2]
[354422883,1740481847891,-500.0,0.00042465,2]
[354422884,1740481847900,-500.0,0.00042465,2]
[354422885,1740481847909,-500.0,0.00042465,2]
[354422886,1740481847920,-15000.0,0.0004247,120]
[354422887,1740481847929,-2073.08639252,0.0004252,15]
[354422888,1740481847938,-15000.0,0.000426,120]
[354422889,1740481847947,-601.15,0.00042669,2]
[354422890,1740481847956,-500.0,0.00042669,2]
[354422891,1740481847965,-500.0,0.00042669,2]
[354422892,1740481847974,-500.0,0.00042669,2]
[354422893,1740481847983,-500.0,0.00042669,2]
[354422894,1740481847992,-516.97,0.00042669,2]
[354422895,1740481848001,-1000.0,0.000427,15]
[354422896,1740481848010,-266.2,0.00042714,2]
[354422897,1740481848019,-151.0,0.0004273,14]
[354422898,1740481848030,-15000.0,0.0004273,120]
[354422899,1740481848039,-500.0,0.00042738,2]
[354422900,1740481848048,-516.0,0.00042738,2]
[354422901,1740481848058,-566.89,0.00042738,2]
[354422902,1740481848067,-500.0,0.00042738,2]
[354422903,1740481848077,-681.92,0.00042738,2]
[354422904,1740481848086,-614.6,0.00042739,2]
[354422905,1740481848105,-500.0,0.00042739,2]
[354422906,1740481848114,-500.0,0.00042739,2]
[354422907,1740481848124,-500.0,0.00042739,2]
[354422908,1740481848135,-4670.6,0.00042762,117]
[354422909,1740481848144,-1400.0,0.000428,15]
[354422910,1740481848154,-15000.0,0.0004286,120]
[354422911,1740481848166,-2073.08639252,0.00042865,15]
[354422912,1740481848176,-1700.0,0.000429,15]
[354422913,1740481848186,-601.15,0.00042943,2]
[354422914,1740481848196,-214.10227427,0.00042943,2]
[354422915,1740481848206,-500.0,0.00042943,2]
[354422916,1740481848217,-500.0,0.00042943,2]
[354422917,1740481848226,-516.97,0.00042943,2]
[354422918,1740481848236,-175.61112405,0.00042947,9]
[354422919,1740481848246,-15000.0,0.0004299,120]
[354422920,1740481848255,-5851.78601727,0.0004299,120]
[354422921,1740481848265,-100000.0,0.00043,48]
[354422922,1740481848274,-21944.20525395,0.00043,120]
[354422923,1740481848287,-4407.4,0.00043,120]
[354422939,1740482708630,10000.0,0.0001,2]
[354422994,1740482715410,693.28679395,0.000121,30]
[354423071,1740482734254,-10000.0,0.0001,2]
[354423095,1740482904765,59604.58742277,0.00012,30]
[354423125,1740482942208,-1137.68592785,9.899e-05,2]
[354423128,1740482942237,-581.06549826,9.9e-05,2]
[354423180,1740483031941,-399.96719758,9.9e-05,2]
[354423181,1740483031951,-517.37232128,9.999e-05,2]
[354423182,1740483031961,-121.59362614,9.999e-05,2]
[354423183,1740483031974,-32.82961645,9.999e-05,2]
[354423184,1740483031985,-398.09038255,0.0001,2]
[354423185,1740483031997,-4415.5111,0.0001,2]
[354423204,1740483037835,-300.4287451,0.0001,2]
[354423205,1740483037893,-35432.31533047,0.0001,2]
[354423206,1740483038274,-44267.07817601,0.0001,2]
[354423344,1740483039947,-316.95210378,0.0001,2]
[354423346,1740483039959,-691.15940414,0.0001,2]
[354423357,1740483040055,-103829.34720147,0.0001,2]
[354423375,1740483040218,-299.9249473,0.0001,2]
[354423377,1740483040229,-520.44374322,0.0001,2]
[354423383,1740483040273,-384.60442928,0.0001,2]
[354423720,1740483043633,-2012.03851155,0.0001,2]
[354423727,1740483043690,-4133.1674134,0.0001,2]
[354423729,1740483043701,-500.0,0.0001,2]
[354423731,1740483043713,-4401.5972,0.0001,2]
[354423736,1740483043747,-4759.0,0.0001,2]
[354423738,1740483043759,-2190.5428951,0.0001,2]
[354423743,1740483043803,-460.0284,0.0001,2]
[354423744,1740483043860,-3544.05441325,0.0001,2]
[354423822,1740483045121,-13064.37538995,0.0001,2]
[354423927,1740483046218,-55551.64378,0.0001,2]
[354424317,1740483307625,-300.0,9.999e-05,2]
[354424318,1740483307649,-279700.0,0.0001,2]
[354424330,1740484115113,-1784.167,9.8e-05,2]
[354424331,1740484115141,-160.633,9.8e-05,2]
[354424332,1740484115168,-632.77958935,9.9e-05,2]
[354424335,1740484232048,-436.06785634,9.9e-05,2]
[354424336,1740484232101,-634.8998894,9.9e-05,2]
[354424337,1740484232113,-415.09721781,9.9e-05,2]
[354424338,1740484232124,-308.807424,9.9e-05,2]
[354424339,1740484232154,-705.12761245,9.9e-05,2]
[354424340,1740484232163,-1583.77651978,9.91e-05,2]
[354424341,1740484232175,-641.58442337,9.91e-05,2]
[354424342,1740484232184,-34984.85104006,0.0001,2]
[354424343,1740484232267,-11731.89875739,0.0001,2]
[354424344,1740484232321,-477.67413071,0.0001,2]
[354424345,1740484232379,-357.47319928,0.0001,2]
[354424346,1740484232390,-13418.44044484,0.0001,2]
[354424347,1740484232402,-1000.0,0.0001,2]
[354424348,1740484232414,-2147.29,0.0001,2]
[354424349,1740484232426,-1686.38084821,0.0001,2]
[354424350,1740484232438,-337.55144945,0.0001,2]
[354424351,1740484232450,-1233950.10741543,0.0001,2]
[354424352,1740484232460,-240.17876833,0.0001,2]
[354424353,1740484232471,-187.80260816,0.0001,2]
[354424354,1740484232481,-175.61112405,0.0001,2]
[354424355,1740484232491,-755.25241302,0.0001,2]
[354424356,1740484232501,-380.13015242,0.00010404,2]
[354424357,1740484232511,-740.92707076,0.0001049,2]
[354424358,1740484232521,-167.92700848,0.0001069,2]
[354424359,1740484232531,-150.0,0.0001089,2]
[354424360,1740484232541,-151.0,0.00010959,2]
[354424361,1740484232550,-1944.16508084,0.00011099,2]
[354424363,1740484232560,-230.49,0.00011265,2]
[354424365,1740484232569,-202.8,0.00012328,2]
[354424367,1740484232578,-269.13,0.00012783,2]
[354424368,1740484232588,-201.97195315,0.000133,2]
[354424369,1740484232603,-2000.0,0.00013302,2]
[354424370,1740484232613,-230.49,0.00013529,2]
[354424371,1740484232622,-797.49998,0.0001353,2]
[354424372,1740484232634,-2015.81,0.0001356,2]
[354424373,1740484232644,-1944.16508082,0.00013622,2]
[354424374,1740484232655,-269.13,0.00014381,2]
[354424375,1740484232665,-500.0,0.00014625,2]
[354424376,1740484232675,-159678.646669,0.000148,2]
[354424377,1740484232685,-1075.74807858,0.000149,2]
[354424378,1740484232695,-999.0,0.00015068,2]
[354424379,1740484232706,-250.0,0.00015387,2]
[354424380,1740484232716,-23900.0,0.00015387,2]
[354424382,1740484232726,-170.22,0.00015663,2]
[354424384,1740484232735,-230.49,0.00015792,2]
[354424386,1740484232744,-335.85,0.00015806,2]
[354424388,1740484232758,-1464.44,0.00015961,2]
[354424390,1740484232770,-269.13,0.00015979,2]
[354424392,1740484232780,-1000.0,0.00016527,2]
[354424394,1740484232790,-1548.80946315,0.0001688,2]
[354424396,1740484232800,-614.49,0.0001726,4]
[354424398,1740484232810,-1944.16508082,0.00017344,2]
[354424400,1740484232820,-194.08,0.00017421,2]
[354424402,1740484232830,-1002.39452907,0.000175,2]
[354424404,1740484232841,-269.13,0.00017577,2]
[354424406,1740484232856,-201.97195312,0.000179,2]
[354424408,1740484232866,-230.49,0.00018056,2]
[354424409,1740484232875,-170.22,0.00018249,2]
[354424411,1740484232885,-9999.99,0.00018533,2]
[354424413,1740484232896,-6403.16,0.00018533,2]
[354424415,1740484232906,-150.99,0.00018533,2]
[354424417,1740484232916,-2415.59,0.00018533,2]
[354424419,1740484232926,-10014.17,0.00018533,2]
[354424421,1740484232939,-150.99,0.00018533,2]
[354424423,1740484232953,-3009.04,0.00018533,2]
[354424425,1740484232964,-3769.87,0.00018533,2]
[354424427,1740484232975,-329.62,0.00018533,2]
[354424429,1740484232985,-499.99,0.00018533,2]
[354424431,1740484232996,-1713.08,0.00018533,5]
[354424433,1740484233007,-299.99,0.00018533,4]
[354424435,1740484233018,-1000.0,0.00018593,2]
[354424437,1740484233029,-740.92707074,0.00018843,2]
[354424439,1740484233039,-269.13,0.00019175,2]
[354424441,1740484233052,-494.53,0.00019397,30]
[354424442,1740484233062,-29725.62316663,0.00019726,2]
[354424443,1740484233072,-271657.36354497,0.000199,2]
[354424446,1740484237988,-89418.69678672,0.000199,2]
[354424447,1740484238150,-31426.9899017,0.000199,2]
[354424448,1740484238159,-166.52974595,0.0002,30]
[354424449,1740484238169,-3076.46596982,0.0002,4]
[354424450,1740484238178,-2589.53654937,0.0002,5]
[354424451,1740484238187,-7006.48744504,0.0002,15]
[354424452,1740484238196,-230.49,0.0002032,2]
[354424453,1740484238205,-1000.0,0.00020659,2]
[354424454,1740484238214,-550.0,0.00021,2]
[354424455,1740484238225,-708.31,0.00021039,2]
[354424456,1740484238235,-1944.16508082,0.00021067,2]
[354424457,1740484238248,-494.53,0.00021981,30]
[354424458,1740484238258,-335.85,0.00022128,2]
[354424459,1740484238268,-36909.7657718,0.00022404,2]
[354424460,1740484238279,-607.53149913,0.00022404,2]
[354424461,1740484238294,-2680.06898776,0.00022404,2]
[354424468,1740484240148,-2669.59854,0.00022404,2]
[354424469,1740484240204,-5003.81574193,0.00022404,2]
[354424470,1740484240215,-2806.18425807,0.00022404,2]
[354424471,1740484240258,-355.93044,0.00022404,2]
[354424472,1740484240270,-1330.1187963,0.00022404,2]
[354424473,1740484240282,-600.47425,0.00022404,2]
[354424474,1740484240313,-1782.97884,0.00022404,2]
[354424766,1740484243141,-581.55477572,0.00021404,2]
[354424769,1740484243151,-333.53981974,0.00022404,2]
[354424780,1740484243196,-6871.22170037,0.00022404,2]
[354424783,1740484243206,-603.78736879,0.00022404,2]
[354424786,1740484243215,-230.49,0.00022584,2]
[354424788,1740484243226,-1000.0,0.00022725,2]
[354424791,1740484243235,-175.66,0.00023836,2]
[354424794,1740484243247,-11139.64815147,0.00024,30]
[354425102,1740484246274,-581.55477568,0.00021404,2]
[354425105,1740484246284,-1896.11034639,0.00024,30]
[354425115,1740484246382,-13857.53081273,0.00024,30]
[354425117,1740484246392,-494.53,0.00024565,30]
[354425119,1740484246402,-1944.16508082,0.00024789,2]
[354425122,1740484246413,-1000.0,0.0002479,2]
[354425124,1740484246424,-230.49,0.00024848,2]
[354425126,1740484246434,-1000.0,0.000249,30]
[354425127,1740484246446,-1402.34693598,0.00025,60]
[354425129,1740484246460,-791.539,0.00025888,30]
[354425131,1740484246470,-205.04,0.00026849,2]
[354425133,1740484246479,-153.76,0.00026849,2]
[354425135,1740484246489,-230.49,0.00027112,2]
[354425137,1740484246499,-494.53,0.00027149,30]
[354425139,1740484246508,-740.92707074,0.00027195,2]
[354425141,1740484246518,-1944.16508082,0.00028511,2]
[354425143,1740484246527,-230.49,0.00029376,2]
[354425145,1740484246537,-494.53,0.00029733,30]
[354425148,1740484246548,-100000.0,0.0003,30]
[354425150,1740484246557,-254.85,0.00031074,2]
[354425152,1740484246571,-155.16,0.00031367,2]
[354425154,1740484246580,-230.49,0.0003164,2]
[354425156,1740484246590,-1085.0,0.000317,3]
[354425158,1740484246599,-1469.0,0.00032214,5]
[354425160,1740484246611,-1944.16508082,0.00032233,2]
[354425162,1740484246620,-494.53,0.00032317,30]
[354425164,1740484246630,-5550.0,0.000328,5]
[354425166,1740484246639,-230.49,0.00033904,2]
[354425168,1740484246648,-32449.43967505,0.00034,2]
[354425170,1740484246658,-151.0,0.00034,7]
[354425172,1740484246667,-325.0,0.00034,7]
[354425174,1740484246677,-325.0,0.00034,7]
[354425176,1740484246686,-1305.76227,0.00034,7]
[354425178,1740484246695,-1305.76227,0.00034,7]
[354425180,1740484246704,-151.0,0.00034,7]
[354425182,1740484246713,-151.0,0.00034,7]
[354425184,1740484246722,-1784.167,0.0003485,40]
[354425186,1740484246731,-160.634,0.0003485,40]
[354425188,1740484246741,-494.53,0.00034901,120]
[354425190,1740484246750,-42269.64972304,0.00035,35]
[354425192,1740484246762,-307.58525385,0.00035,35]
[354425194,1740484246773,-431.76978714,0.00035,35]
[354425196,1740484246784,-724.99325505,0.00035,35]
[354425198,1740484246795,-266.778,0.00035,35]
[354425308,1740484308876,-416.21702073,9.999e-05,2]
[354425347,1740485432377,-222.0,0.00022395,50]
[354425348,1740485432390,-39.61765401,0.00024635,10]
[354425349,1740485432486,-210.38234599,0.00024635,10]
[354425350,1740485432496,-201.97195312,0.000349,7]
[354425351,1740485432505,-481.20570089,0.00034999,40]
[354425352,1740485432518,-589.29429911,0.00034999,40]
[354425353,1740485432528,-160.633,0.00034999,40]
[354425354,1740485432538,-400.0,0.00034999,2]
[354425355,1740485432547,-300.34316867,0.00035,5]
[354425356,1740485432557,-1479.96259737,0.00035,2]
[354425357,1740485432569,-8520.03740263,0.00035,2]
[354425358,1740485432579,-429.92679737,0.00035,120]
[354425359,1740485432595,-3912.54832443,0.00035,120]
[354425360,1740485432613,-413.89043632,0.00035,120]
[354425361,1740485432632,-5027.33450675,0.00035,120]
[354425362,1740485432653,-1024.56,0.00035,120]
[354425363,1740485432706,-2436.06632774,0.00035,120]
[354425875,1740485438192,-9473.67360739,0.00035,120]
[354425878,1740485438204,-1064.08127896,0.00035148,7]
[354425880,1740485438215,-545.92,0.000355,30]
[354425882,1740485438228,-1042.18516478,0.000355,2]
[354425884,1740485438241,-8957.80483522,0.000355,2]
[354425886,1740485438252,-159.57,0.00035586,2]
[354425888,1740485438264,-150.0,0.00036357,30]
[354425890,1740485438276,-150.0,0.00036357,30]
[354425891,1740485438289,-150.0,0.00036357,30]
[354425892,1740485438302,-667.56276471,0.00036357,30]
[354425893,1740485438314,-341.57864934,0.00036357,30]
[354425894,1740485438326,-4816.17742016,0.00036357,30]
[354425895,1740485438337,-2087.0,0.00037,117]
[354425896,1740485438349,-968.38,0.00037264,120]
[354425898,1740485438363,-1000.0,0.0003732,2]
[354425900,1740485438373,-484.13,0.00037363,120]
[354425902,1740485438385,-321.44,0.00037409,120]
[354425904,1740485438397,-12103.4552126,0.00037485,120]
[354425906,1740485438408,-560.0,0.00037527,2]
[354425908,1740485438419,-258.74,0.0003775,120]
[354425911,1740485438436,-159.76,0.00037796,2]
[354425913,1740485438447,-153.76,0.00037863,2]
[354425915,1740485438458,-5012.92,0.00038,120]
[354425917,1740485438469,-250.0,0.00038025,2]
[354425919,1740485438480,-201.97195312,0.00038233,8]
[354425922,1740485438491,-23900.0,0.00038314,2]
[354425924,1740485438504,-193.0,0.00038482,120]
[354425926,1740485438515,-162.0,0.00038482,120]
[354425928,1740485438526,-418.97809976,0.00038998,120]
[354425931,1740485438537,-20519.0989663,0.00038999,120]
[354425933,1740485438548,-159.57,0.00039171,2]
[354425935,1740485438559,-3135.1894583,0.00039421,120]
[354425937,1740485438570,-500.0,0.000399,2]
[354425939,1740485438579,-6173.9271648,0.000399,15]
[354425941,1740485438590,-615.08577613,0.000399,15]
[354425943,1740485438600,-321.44,0.00039993,120]
[354425946,1740485438614,-100000.0,0.0004,40]
[354425948,1740485438624,-20000.0,0.0004,120]
[354425950,1740485438637,-15000.0,0.0004,120]
[354425952,1740485438649,-15000.0,0.0004,120]
[354425955,1740485438662,-15000.0,0.0004,120]
[354425957,1740485438676,-3031.3,0.0004,120]
[354425959,1740485438687,-15000.0,0.0004,120]
[354425961,1740485438698,-615.08577607,0.00040011,15]
[354425963,1740485438708,-504.01413896,0.0004003,12]
[354425965,1740485438719,-615.08577607,0.00040122,15]
[354425968,1740485438730,-15000.0,0.0004013,120]
[354425970,1740485438741,-15000.0,0.0004013,120]
[354425973,1740485438752,-10134.21,0.0004013,120]
[354425975,1740485438765,-15000.0,0.0004013,120]
[354425977,1740485438776,-615.08577607,0.00040233,15]
[354425979,1740485438787,-783.0,0.00040237,5]
[354425981,1740485438797,-15000.0,0.0004026,120]
[354425983,1740485438807,-15000.0,0.0004026,120]
[354425985,1740485438817,-938.42,0.0004026,120]
[354425987,1740485438827,-317.95163445,0.000403,2]
[354425989,1740485438837,-615.08577607,0.00040344,15]
[354425991,1740485438848,-972.48,0.00040373,2]
[354425993,1740485438861,-15000.0,0.0004039,120]
[354425995,1740485438871,-15000.0,0.0004039,120]
[354425997,1740485438881,-400.0,0.000404,14]
[354426000,1740485438893,-615.08577607,0.00040456,15]
[354426002,1740485438905,-900.0,0.000405,14]